[Event "*** Titled Tuesday 3|2 Blitz"]
[Site "Chess.com"]
[Date "2015.07.07"]
[Round "5"]
[White "Canonkasparov"]
[Black "alturas_pacificas"]
[Result "0-1"]
[WhiteElo "2235"]
[BlackElo "2078"]
[TimeControl "180+2"]
[EndTime "12:02:48 PDT"]
[Termination "alturas_pacificas won by resignation"]

1. d4 {[%clk 0:03:01.9]} 1... d5 {[%clk 0:03:00.1]} 2. Nf3 {[%clk 0:03:02.9]}
2... Nf6 {[%clk 0:03:00.7]} 3. Bf4 {[%clk 0:03:01.8]} 3... c5 {[%clk 0:03:01]}
4. c3 {[%clk 0:03:01.7]} 4... Nc6 {[%clk 0:03:01.8]} 5. e3 {[%clk 0:03:02.4]}
5... Qb6 {[%clk 0:03:02.6]} 6. Qc2 {[%clk 0:03:02.3]} 6... Bf5 {[%clk
0:03:02.1]} 7. dxc5 {[%clk 0:03:01.8]} 7... Bxc2 {[%clk 0:02:36.5]} 8. cxb6
{[%clk 0:02:38]} 8... axb6 {[%clk 0:02:37.5]} 9. Na3 {[%clk 0:02:37.2]} 9... Be4
{[%clk 0:02:13.2]} 10. Nb5 {[%clk 0:02:36.7]} 10... Rc8 {[%clk 0:02:14.7]} 11.
Be2 {[%clk 0:02:28.6]} 11... e6 {[%clk 0:02:15.7]} 12. O-O {[%clk 0:02:28.1]}
12... Be7 {[%clk 0:01:53.6]} 13. h3 {[%clk 0:02:27.8]} 13... O-O {[%clk
0:01:51.1]} 14. Rfd1 {[%clk 0:02:26.3]} 14... h6 {[%clk 0:01:51.2]} 15. Bh2
{[%clk 0:02:24.5]} 15... Ra8 {[%clk 0:01:19.7]} 16. Nfd4 {[%clk 0:02:21.8]}
16... Nxd4 {[%clk 0:01:15.3]} 17. exd4 {[%clk 0:02:20.6]} 17... Bc2 {[%clk
0:00:36.5]} 18. Re1 {[%clk 0:02:17.2]} 18... Ba4 {[%clk 0:00:37.9]} 19. b3
{[%clk 0:01:44.7]} 19... Bxb5 {[%clk 0:00:37.4]} 20. Bxb5 {[%clk 0:01:45]} 20...
Rac8 {[%clk 0:00:36.8]} 21. c4 {[%clk 0:01:43.8]} 21... dxc4 {[%clk 0:00:37.1]}
22. bxc4 {[%clk 0:01:41.6]} 22... Rfd8 {[%clk 0:00:37.6]} 23. Rad1 {[%clk
0:01:40.3]} 23... Bd6 {[%clk 0:00:38.4]} 24. Be5 {[%clk 0:01:36.9]} 24... Bxe5
{[%clk 0:00:38.2]} 25. dxe5 {[%clk 0:01:37.3]} 25... Ne8 {[%clk 0:00:31.3]} 26.
a4 {[%clk 0:01:32.7]} 26... Nc7 {[%clk 0:00:31.6]} 27. Rd6 {[%clk 0:01:28.4]}
27... Nxb5 {[%clk 0:00:26.8]} 28. cxb5 {[%clk 0:01:28.7]} 28... Rxd6 {[%clk
0:00:22.1]} 29. exd6 {[%clk 0:01:29.1]} 29... Kf8 {[%clk 0:00:23.1]} 30. d7
{[%clk 0:01:24.7]} 30... Rd8 {[%clk 0:00:23.4]} 31. Rc1 {[%clk 0:01:20.4]} 31...
Rxd7 {[%clk 0:00:21.9]} 32. Rc4 {[%clk 0:01:20.1]} 32... Ke7 {[%clk 0:00:22.5]}
33. g3 {[%clk 0:01:20]} 33... e5 {[%clk 0:00:23.4]} 34. Kg2 {[%clk 0:01:20.3]}
34... f5 {[%clk 0:00:24.3]} 35. Kf1 {[%clk 0:01:18.5]} 35... g5 {[%clk
0:00:24.8]} 36. Ke2 {[%clk 0:01:17.8]} 36... Ke6 {[%clk 0:00:25.4]} 37. h4
{[%clk 0:01:18]} 37... e4 {[%clk 0:00:24.5]} 38. hxg5 {[%clk 0:01:17.9]} 38...
hxg5 {[%clk 0:00:26.4]} 39. Rc8 {[%clk 0:01:18.5]} 39... f4 {[%clk 0:00:24.6]}
40. gxf4 {[%clk 0:01:18.1]} 40... gxf4 {[%clk 0:00:25.3]} 41. Rf8 {[%clk
0:01:18.5]} 41... Ke5 {[%clk 0:00:22.9]} 42. Re8+ {[%clk 0:01:18.8]} 42... Kd4
{[%clk 0:00:23.4]} 43. Re6 {[%clk 0:01:16.5]} 43... f3+ {[%clk 0:00:22.2]} 44.
Kd2 {[%clk 0:01:15.8]} 44... Kd5 {[%clk 0:00:08.5]} 45. Re8 {[%clk 0:01:03.7]}
45... Kd4 {[%clk 0:00:08.3]} 46. Rc8 {[%clk 0:00:58.5]} 46... Ke5+ {[%clk
0:00:08.3]} 47. Kc2 {[%clk 0:00:58.7]} 47... e3 {[%clk 0:00:07.6]} 48. fxe3
{[%clk 0:00:57.2]} 48... Kf5 {[%clk 0:00:07]} 49. Rg8 {[%clk 0:00:55.9]} 49...
Ke4 {[%clk 0:00:07.1]} 50. Re8+ {[%clk 0:00:56]} 50... Kf5 {[%clk 0:00:08.3]}
51. Rg8 {[%clk 0:00:55.3]} 51... Ke4 {[%clk 0:00:08.4]} 52. Re8+ {[%clk
0:00:55]} 52... Kf5 {[%clk 0:00:09.4]} 53. Rf8+ {[%clk 0:00:54.9]} 53... Kg4
{[%clk 0:00:10.2]} 54. Rg8+ {[%clk 0:00:50.4]} 54... Kh3 {[%clk 0:00:10.9]} 55.
Rf8 {[%clk 0:00:48.6]} 55... Kg2 {[%clk 0:00:12]} 56. Kc3 {[%clk 0:00:46.2]}
56... f2 {[%clk 0:00:12.7]} 57. Kb4 {[%clk 0:00:46.1]} 57... f1=Q {[%clk
0:00:12.3]} 58. Rxf1 {[%clk 0:00:46.5]} 58... Kxf1 {[%clk 0:00:14.2]} 59. a5
{[%clk 0:00:47.5]} 59... bxa5+ {[%clk 0:00:15.2]} 60. Kxa5 {[%clk 0:00:48.3]}
60... Ke2 {[%clk 0:00:16.8]} 61. e4 {[%clk 0:00:48.9]} 61... Ke3 {[%clk
0:00:17.9]} 62. e5 {[%clk 0:00:49.8]} 62... Kd4 {[%clk 0:00:18.5]} 63. e6 {[%clk
0:00:50.5]} 63... Re7 {[%clk 0:00:19.9]} 64. Kb6 {[%clk 0:00:51.1]} 64... Kd5
{[%clk 0:00:20.6]} 65. Ka7 {[%clk 0:00:51.7]} 65... Kxe6 {[%clk 0:00:21.1]} 66.
b6 {[%clk 0:00:50.7]} 66... Kd5 {[%clk 0:00:17.6]} 67. Kb8 {[%clk 0:00:46]}
67... Kc6 {[%clk 0:00:17.8]} 68. Ka7 {[%clk 0:00:45.3]} 68... Rh7 {[%clk
0:00:15.7]} 69. Kb8 {[%clk 0:00:44.3]} 69... Kxb6 {[%clk 0:00:16.3]} 70. Kc8
{[%clk 0:00:44.8]} 70... Kc6 {[%clk 0:00:16.9]} 71. Kb8 {[%clk 0:00:42.4]} 71...
b5 {[%clk 0:00:16]} 72. Ka8 {[%clk 0:00:42.3]} 72... Kb6 {[%clk 0:00:16.4]} 0-1

[Event "*** Titled Tuesday 3|2 Blitz"]
[Site "Chess.com"]
[Date "2015.07.07"]
[Round "5"]
[White "zmaj23"]
[Black "Imre91"]
[Result "1-0"]
[WhiteElo "2456"]
[BlackElo "2592"]
[TimeControl "180+2"]
[EndTime "12:03:14 PDT"]
[Termination "zmaj23 won by resignation"]

1. e4 {[%clk 0:03:01.9]} 1... e6 {[%clk 0:02:52]} 2. Nc3 {[%clk 0:03:03]} 2...
d5 {[%clk 0:02:48.2]} 3. d4 {[%clk 0:03:03.8]} 3... dxe4 {[%clk 0:02:48.1]} 4.
Nxe4 {[%clk 0:03:05.2]} 4... Bd7 {[%clk 0:02:49.4]} 5. Nf3 {[%clk 0:03:04.7]}
5... Bc6 {[%clk 0:02:50.7]} 6. Bd3 {[%clk 0:03:05.1]} 6... Nd7 {[%clk
0:02:52.2]} 7. Qe2 {[%clk 0:03:05.1]} 7... Be7 {[%clk 0:02:49.5]} 8. O-O {[%clk
0:03:03]} 8... Ngf6 {[%clk 0:02:50.5]} 9. Neg5 {[%clk 0:03:00]} 9... h6 {[%clk
0:02:34.7]} 10. Nxe6 {[%clk 0:02:57.8]} 10... fxe6 {[%clk 0:02:34.9]} 11. Bg6+
{[%clk 0:02:59.1]} 11... Kf8 {[%clk 0:02:34.8]} 12. Qxe6 {[%clk 0:02:55.2]}
12... Bd5 {[%clk 0:02:35.7]} 13. Qe2 {[%clk 0:02:55.7]} 13... Bf7 {[%clk
0:02:27.6]} 14. Bxf7 {[%clk 0:02:53.1]} 14... Kxf7 {[%clk 0:02:29.5]} 15. Re1
{[%clk 0:02:55]} 15... Re8 {[%clk 0:02:29.6]} 16. Qe6+ {[%clk 0:02:51.9]} 16...
Kf8 {[%clk 0:02:29.5]} 17. Nh4 {[%clk 0:02:51]} 17... g5 {[%clk 0:02:28.9]} 18.
Ng6+ {[%clk 0:02:51.4]} 18... Kg7 {[%clk 0:02:28.6]} 19. Nxe7 {[%clk 0:02:52.5]}
19... Nf8 {[%clk 0:02:28.1]} 20. Qe2 {[%clk 0:02:43.7]} 20... Qd7 {[%clk
0:02:27.4]} 21. b3 {[%clk 0:02:40]} 21... Ng6 {[%clk 0:02:23.2]} 22. Ba3 {[%clk
0:02:37.1]} 22... Nd5 {[%clk 0:02:21.8]} 23. Qe4 {[%clk 0:02:33.4]} 23... Ndxe7
{[%clk 0:02:10.2]} 24. Qxb7 {[%clk 0:02:34.1]} 24... Qc6 {[%clk 0:02:09.2]} 25.
Qxc6 {[%clk 0:02:31.6]} 25... Nxc6 {[%clk 0:02:10.1]} 26. d5 {[%clk 0:02:33.5]}
26... Nce5 {[%clk 0:02:10.6]} 27. Bb2 {[%clk 0:02:31.8]} 27... Kf7 {[%clk
0:02:11]} 28. Re3 {[%clk 0:02:29.6]} 28... Rad8 {[%clk 0:02:09.1]} 29. c4 {[%clk
0:02:25.2]} 29... g4 {[%clk 0:01:59.1]} 30. Bc3 {[%clk 0:02:12.9]} 30... Nd7
{[%clk 0:01:43.7]} 31. Rae1 {[%clk 0:02:09.6]} 31... Rxe3 {[%clk 0:01:43.6]} 32.
fxe3 {[%clk 0:02:07.1]} 32... Nge5 {[%clk 0:01:39.5]} 33. Kf1 {[%clk 0:02:03.2]}
33... Kg6 {[%clk 0:01:39.6]} 34. Ke2 {[%clk 0:02:04.4]} 34... Rf8 {[%clk
0:01:38.6]} 35. e4 {[%clk 0:02:02.1]} 35... c5 {[%clk 0:01:29]} 36. Ke3 {[%clk
0:01:55.1]} 36... g3 {[%clk 0:01:22.8]} 37. hxg3 {[%clk 0:01:52.5]} 37... Ng4+
{[%clk 0:01:23.5]} 38. Kd2 {[%clk 0:01:53.1]} 38... Nde5 {[%clk 0:01:19.4]} 39.
Ba5 {[%clk 0:01:45.8]} 39... Rf2+ {[%clk 0:01:18.8]} 40. Re2 {[%clk 0:01:44.2]}
40... Rf1 {[%clk 0:01:19.5]} 41. Bc7 {[%clk 0:01:42.2]} 41... Ra1 {[%clk
0:01:19.5]} 42. Kc3 {[%clk 0:01:40.1]} 42... Rc1+ {[%clk 0:01:20.2]} 43. Kb2
{[%clk 0:01:41.1]} 43... Nd3+ {[%clk 0:01:17.8]} 44. Ka3 {[%clk 0:01:41.1]}
44... Nge5 {[%clk 0:01:19]} 45. Ka4 {[%clk 0:01:34.7]} 45... Rf1 {[%clk
0:01:12.3]} 46. Kb5 {[%clk 0:01:27.8]} 46... Kf6 {[%clk 0:01:12]} 47. Ka6 {[%clk
0:01:23.6]} 47... Ke7 {[%clk 0:01:10.3]} 48. Kxa7 {[%clk 0:01:25]} 48... Kd7
{[%clk 0:01:11.8]} 49. Bxe5 {[%clk 0:01:19.9]} 49... Nxe5 {[%clk 0:01:11.8]} 50.
a4 {[%clk 0:01:20.4]} 50... Kc7 {[%clk 0:01:07.3]} 51. Ka6 {[%clk 0:01:18.8]}
51... Kd6 {[%clk 0:00:55]} 52. Kb5 {[%clk 0:01:10.8]} 52... Rb1 {[%clk 0:00:55]}
53. Re3 {[%clk 0:01:11.1]} 53... Ra1 {[%clk 0:00:54.6]} 54. a5 {[%clk
0:01:11.3]} 54... Kc7 {[%clk 0:00:42.3]} 55. Kxc5 {[%clk 0:01:09.7]} 55... Rxa5+
{[%clk 0:00:41.8]} 56. Kd4 {[%clk 0:01:11.4]} 56... Ng4 {[%clk 0:00:35.7]} 57.
Rf3 {[%clk 0:01:12.9]} 57... Ra2 {[%clk 0:00:37.2]} 58. Rf7+ {[%clk 0:01:11.2]}
58... Kd8 {[%clk 0:00:38.2]} 59. d6 {[%clk 0:01:09.5]} 59... Rd2+ {[%clk
0:00:31.5]} 60. Kc5 {[%clk 0:01:10.5]} 60... Ne5 {[%clk 0:00:33]} 61. Rf5 {[%clk
0:01:08.4]} 61... Nd7+ {[%clk 0:00:33]} 62. Kc6 {[%clk 0:01:09.1]} 62... Re2
{[%clk 0:00:28.5]} 63. Rf4 {[%clk 0:01:02.3]} 63... Ne5+ {[%clk 0:00:19.3]} 64.
Kd5 {[%clk 0:01:01.2]} 64... Nd3 {[%clk 0:00:19.3]} 65. Rf8+ {[%clk 0:00:59.2]}
65... Kd7 {[%clk 0:00:20]} 66. c5 {[%clk 0:00:57]} 66... Nb4+ {[%clk 0:00:20.6]}
67. Kc4 {[%clk 0:00:54.6]} 67... Rxe4+ {[%clk 0:00:20.4]} 68. Kb5 {[%clk
0:00:56.2]} 68... Nd5 {[%clk 0:00:20.6]} 69. Rf7+ {[%clk 0:00:54.5]} 69... Ke6
{[%clk 0:00:21.5]} 70. Rh7 {[%clk 0:00:55.5]} 70... Rb4+ {[%clk 0:00:16.4]} 71.
Kc6 {[%clk 0:00:56.8]} 71... Nf6 {[%clk 0:00:17.8]} 72. Rxh6 {[%clk 0:00:55.5]}
72... Rxb3 {[%clk 0:00:18.6]} 73. d7 {[%clk 0:00:53.2]} 73... Rd3 {[%clk
0:00:19.3]} 74. Rxf6+ {[%clk 0:00:46.7]} 74... Kxf6 {[%clk 0:00:20.2]} 75. Kc7
{[%clk 0:00:47.9]} 75... Ke7 {[%clk 0:00:21.2]} 76. c6 {[%clk 0:00:48.6]} 76...
Rd6 {[%clk 0:00:21.9]} 77. g4 {[%clk 0:00:45]} 1-0

[Event "*** Titled Tuesday 3|2 Blitz"]
[Site "Chess.com"]
[Date "2015.07.07"]
[Round "5"]
[White "MinhGTrAn"]
[Black "GeorgMeier"]
[Result "1-0"]
[WhiteElo "2592"]
[BlackElo "2723"]
[TimeControl "180+2"]
[EndTime "12:03:23 PDT"]
[Termination "MinhGTrAn won on time"]

1. d4 {[%clk 0:03:01.9]} 1... e6 {[%clk 0:03:00.9]} 2. c4 {[%clk 0:03:02.5]}
2... d5 {[%clk 0:03:02]} 3. Nc3 {[%clk 0:03:02.6]} 3... Nf6 {[%clk 0:03:03]} 4.
cxd5 {[%clk 0:03:04.2]} 4... exd5 {[%clk 0:03:04.1]} 5. Bg5 {[%clk 0:03:05.7]}
5... c6 {[%clk 0:03:05.5]} 6. e3 {[%clk 0:03:07.1]} 6... Bf5 {[%clk 0:03:06.9]}
7. Bd3 {[%clk 0:03:08.1]} 7... Bxd3 {[%clk 0:03:06.3]} 8. Qxd3 {[%clk 0:03:10]}
8... Nbd7 {[%clk 0:03:04.9]} 9. Nge2 {[%clk 0:03:10.6]} 9... Be7 {[%clk
0:02:59.7]} 10. O-O {[%clk 0:03:11.2]} 10... O-O {[%clk 0:02:52.7]} 11. Rab1
{[%clk 0:03:11.8]} 11... a5 {[%clk 0:02:36.7]} 12. f3 {[%clk 0:02:36.7]} 12...
a4 {[%clk 0:02:25.5]} 13. Rbd1 {[%clk 0:02:28.3]} 13... Qa5 {[%clk 0:02:22.9]}
14. Bh4 {[%clk 0:02:24.9]} 14... Rfd8 {[%clk 0:02:02.2]} 15. Bg3 {[%clk
0:02:04]} 15... c5 {[%clk 0:01:33.3]} 16. dxc5 {[%clk 0:01:55.7]} 16... Nxc5
{[%clk 0:01:24]} 17. Qb5 {[%clk 0:01:56]} 17... Ne6 {[%clk 0:01:17.7]} 18. Qxa5
{[%clk 0:01:32]} 18... Rxa5 {[%clk 0:01:19.6]} 19. Nd4 {[%clk 0:01:33.9]} 19...
g6 {[%clk 0:01:06.3]} 20. Nxe6 {[%clk 0:01:33.6]} 20... fxe6 {[%clk 0:01:08.2]}
21. Bc7 {[%clk 0:01:35.2]} 21... Rda8 {[%clk 0:01:08.5]} 22. Bxa5 {[%clk
0:01:36.2]} 22... Rxa5 {[%clk 0:01:10.4]} 23. Rd3 {[%clk 0:01:35.2]} 23... Nd7
{[%clk 0:01:07.3]} 24. Rc1 {[%clk 0:01:22.5]} 24... Ne5 {[%clk 0:01:07.9]} 25.
Rd2 {[%clk 0:01:15.8]} 25... Bc5 {[%clk 0:00:58.4]} 26. Nd1 {[%clk 0:01:15.9]}
26... Kf7 {[%clk 0:00:50.1]} 27. Kf1 {[%clk 0:01:14.6]} 27... Nc4 {[%clk
0:00:44.3]} 28. Rd3 {[%clk 0:01:13.4]} 28... Kf6 {[%clk 0:00:38]} 29. Ke2 {[%clk
0:01:13.7]} 29... b6 {[%clk 0:00:36.9]} 30. Rc2 {[%clk 0:01:08.4]} 30... g5
{[%clk 0:00:33.5]} 31. Rdc3 {[%clk 0:00:58.1]} 31... Ne5 {[%clk 0:00:31.4]} 32.
Nf2 {[%clk 0:00:54.1]} 32... Nc4 {[%clk 0:00:29.1]} 33. Nd3 {[%clk 0:00:22.8]}
33... Bd6 {[%clk 0:00:26.6]} 34. b3 {[%clk 0:00:22.3]} 34... Na3 {[%clk
0:00:21.6]} 35. Rc1 {[%clk 0:00:21.8]} 35... Nb5 {[%clk 0:00:21.5]} 36. Rc6
{[%clk 0:00:21.5]} 36... axb3 {[%clk 0:00:21.4]} 37. axb3 {[%clk 0:00:23.4]}
37... Bxh2 {[%clk 0:00:20.1]} 38. Rxb6 {[%clk 0:00:22.6]} 38... Ra2+ {[%clk
0:00:19.8]} 39. Kf1 {[%clk 0:00:24]} 39... Nc7 {[%clk 0:00:17.7]} 40. f4 {[%clk
0:00:21.3]} 40... Ne8 {[%clk 0:00:14]} 41. Nb4 {[%clk 0:00:19.6]} 41... Rd2
{[%clk 0:00:13.2]} 42. Ke1 {[%clk 0:00:21.1]} 42... Rxg2 {[%clk 0:00:14]} 43.
Rcc6 {[%clk 0:00:11.9]} 43... Ng7 {[%clk 0:00:13]} 44. Nxd5+ {[%clk 0:00:12.9]}
44... Kf5 {[%clk 0:00:13.4]} 45. Rb7 {[%clk 0:00:08.8]} 45... gxf4 {[%clk
0:00:12.5]} 46. Nxf4 {[%clk 0:00:09.4]} 46... Bxf4 {[%clk 0:00:12.1]} 47. exf4
{[%clk 0:00:10.6]} 47... h5 {[%clk 0:00:13.5]} 48. Rc4 {[%clk 0:00:08.7]} 48...
h4 {[%clk 0:00:12.7]} 49. Rb5+ {[%clk 0:00:10.3]} 49... Kf6 {[%clk 0:00:12.9]}
50. Kf1 {[%clk 0:00:11.6]} 50... Rb2 {[%clk 0:00:13.1]} 51. Rc3 {[%clk
0:00:09.4]} 51... Nf5 {[%clk 0:00:13.5]} 52. Rb8 {[%clk 0:00:06.6]} 52... Ng3+
{[%clk 0:00:13.2]} 53. Ke1 {[%clk 0:00:07.7]} 53... Kf5 {[%clk 0:00:14.4]} 54.
Rf8+ {[%clk 0:00:08]} 54... Kg4 {[%clk 0:00:15.5]} 55. Rh8 {[%clk 0:00:06.2]}
55... Nf5 {[%clk 0:00:15.3]} 56. Rc4 {[%clk 0:00:04.9]} 56... Kf3 {[%clk
0:00:14.8]} 57. Kd1 {[%clk 0:00:04.4]} 57... Rh2 {[%clk 0:00:07.4]} 58. Kc1
{[%clk 0:00:04.9]} 58... Rf2 {[%clk 0:00:05.9]} 59. Rc2 {[%clk 0:00:04.8]} 59...
Rf1+ {[%clk 0:00:05.3]} 60. Kb2 {[%clk 0:00:06.4]} 60... Kxf4 {[%clk 0:00:04.1]}
61. b4 {[%clk 0:00:08]} 61... Rd1 {[%clk 0:00:05.1]} 62. b5 {[%clk 0:00:07.8]}
62... Rd6 {[%clk 0:00:06.1]} 63. Rc6 {[%clk 0:00:08.2]} 63... Rd5 {[%clk
0:00:07]} 64. Rc4+ {[%clk 0:00:09.1]} 64... Kg3 {[%clk 0:00:05.8]} 65. Rb4
{[%clk 0:00:10.1]} 65... Rd7 {[%clk 0:00:05.5]} 66. b6 {[%clk 0:00:11.3]} 66...
Rb7 {[%clk 0:00:07]} 67. Ka3 {[%clk 0:00:10.9]} 67... Ne3 {[%clk 0:00:04]} 68.
Rb3 {[%clk 0:00:11.1]} 68... Kf2 {[%clk 0:00:05.1]} 69. Rxh4 {[%clk 0:00:11.5]}
1-0

[Event "*** Titled Tuesday 3|2 Blitz"]
[Site "Chess.com"]
[Date "2015.07.07"]
[Round "5"]
[White "viditchess"]
[Black "jcibarra"]
[Result "1-0"]
[WhiteElo "2421"]
[BlackElo "2541"]
[TimeControl "180+2"]
[EndTime "12:06:02 PDT"]
[Termination "viditchess won by resignation"]

1. d4 {[%clk 0:03:01.9]} 1... Nf6 {[%clk 0:03:00.8]} 2. c4 {[%clk 0:03:02.7]}
2... d6 {[%clk 0:03:02.1]} 3. Nf3 {[%clk 0:03:01.9]} 3... g6 {[%clk 0:03:03.1]}
4. g3 {[%clk 0:03:02.7]} 4... Bg7 {[%clk 0:03:03.5]} 5. Bg2 {[%clk 0:03:04.4]}
5... O-O {[%clk 0:03:05.2]} 6. O-O {[%clk 0:03:06.1]} 6... Nc6 {[%clk
0:03:06.9]} 7. Nc3 {[%clk 0:03:06.6]} 7... Bf5 {[%clk 0:03:08]} 8. d5 {[%clk
0:03:06.7]} 8... Na5 {[%clk 0:03:09.1]} 9. Nd2 {[%clk 0:03:07.9]} 9... c6 {[%clk
0:03:10.2]} 10. e4 {[%clk 0:03:08]} 10... Bg4 {[%clk 0:03:10.5]} 11. f3 {[%clk
0:02:55.6]} 11... Bd7 {[%clk 0:03:11.3]} 12. dxc6 {[%clk 0:02:40.2]} 12... bxc6
{[%clk 0:03:00.8]} 13. f4 {[%clk 0:02:34.8]} 13... Ng4 {[%clk 0:02:54]} 14. Qe2
{[%clk 0:02:11.5]} 14... Qb6+ {[%clk 0:02:46.3]} 15. Kh1 {[%clk 0:02:12.6]}
15... Qe3 {[%clk 0:02:46.9]} 16. Qxe3 {[%clk 0:01:22.6]} 16... Nxe3 {[%clk
0:02:46.8]} 17. Rf3 {[%clk 0:01:24.3]} 17... Nexc4 {[%clk 0:02:43.4]} 18. Nxc4
{[%clk 0:01:21.1]} 18... Nxc4 {[%clk 0:02:44.3]} 19. b3 {[%clk 0:01:22.8]} 19...
Nb6 {[%clk 0:02:19.2]} 20. Rd3 {[%clk 0:01:21.2]} 20... Rac8 {[%clk 0:02:14.6]}
21. Be3 {[%clk 0:01:22.3]} 21... c5 {[%clk 0:02:14]} 22. Rb1 {[%clk 0:01:19.6]}
22... c4 {[%clk 0:02:08.9]} 23. bxc4 {[%clk 0:01:20.1]} 23... Nxc4 {[%clk
0:02:10.8]} 24. Bxa7 {[%clk 0:01:16.2]} 24... Na3 {[%clk 0:01:20.5]} 25. Rb3
{[%clk 0:01:03.5]} 25... Bxc3 {[%clk 0:01:21.3]} 26. Rdxc3 {[%clk 0:00:35.6]}
26... Rxc3 {[%clk 0:01:20.3]} 27. Rxc3 {[%clk 0:00:37.5]} 27... Nb5 {[%clk
0:01:22.2]} 28. Rb3 {[%clk 0:00:38.8]} 28... Nxa7 {[%clk 0:01:15.2]} 29. Rb7
{[%clk 0:00:40.3]} 29... Rc8 {[%clk 0:01:02.3]} 30. h4 {[%clk 0:00:28.4]} 30...
Rc1+ {[%clk 0:00:47.8]} 31. Kh2 {[%clk 0:00:29.5]} 31... Bg4 {[%clk 0:00:24.4]}
32. Rxa7 {[%clk 0:00:30]} 32... Rc2 {[%clk 0:00:25.9]} 33. Kg1 {[%clk
0:00:30.4]} 33... e5 {[%clk 0:00:23.6]} 34. a4 {[%clk 0:00:25.2]} 34... Ra2
{[%clk 0:00:21.3]} 35. a5 {[%clk 0:00:25.9]} 35... Ra3 {[%clk 0:00:20.1]} 36.
Kf2 {[%clk 0:00:24.1]} 36... Ra2+ {[%clk 0:00:21.5]} 37. Kg1 {[%clk 0:00:25.3]}
37... Be6 {[%clk 0:00:21.1]} 38. Ra6 {[%clk 0:00:20]} 38... Ra1+ {[%clk
0:00:19.4]} 39. Kf2 {[%clk 0:00:20.7]} 39... Ra2+ {[%clk 0:00:20.9]} 40. Kg1
{[%clk 0:00:22]} 40... exf4 {[%clk 0:00:17.4]} 41. gxf4 {[%clk 0:00:22.9]} 41...
Kg7 {[%clk 0:00:19]} 42. Ra7 {[%clk 0:00:21.4]} 42... Kh6 {[%clk 0:00:18.3]} 43.
Bf3 {[%clk 0:00:20.7]} 43... Bc4 {[%clk 0:00:15.9]} 44. Rc7 {[%clk 0:00:19.1]}
44... Be6 {[%clk 0:00:16.8]} 45. Ra7 {[%clk 0:00:19.6]} 45... Rb2 {[%clk
0:00:17]} 46. Ra6 {[%clk 0:00:20.2]} 46... Ra2 {[%clk 0:00:14.2]} 47. Ra7 {[%clk
0:00:21]} 47... Ra1+ {[%clk 0:00:15.7]} 48. Kf2 {[%clk 0:00:21.8]} 48... Ra3
{[%clk 0:00:17.3]} 49. Ra6 {[%clk 0:00:21.5]} 49... Bc4 {[%clk 0:00:16.5]} 50.
Rc6 {[%clk 0:00:21]} 50... Bb5 {[%clk 0:00:15.9]} 51. Rxd6 {[%clk 0:00:22]}
51... Rxa5 {[%clk 0:00:17.6]} 52. e5 {[%clk 0:00:20.1]} 52... Bc4 {[%clk
0:00:17.3]} 53. Rd4 {[%clk 0:00:19.9]} 53... Be6 {[%clk 0:00:18.3]} 54. Kg3
{[%clk 0:00:21.3]} 54... Ra3 {[%clk 0:00:19.3]} 55. Kf2 {[%clk 0:00:22.7]} 55...
Kg7 {[%clk 0:00:20.4]} 56. Rb4 {[%clk 0:00:22.7]} 56... Rc3 {[%clk 0:00:21.2]}
57. Rd4 {[%clk 0:00:23.8]} 57... Ra3 {[%clk 0:00:21.7]} 58. h5 {[%clk
0:00:23.5]} 58... Ra2+ {[%clk 0:00:16.9]} 59. Kg3 {[%clk 0:00:24.1]} 59... Ra3
{[%clk 0:00:18.4]} 60. hxg6 {[%clk 0:00:24.7]} 60... hxg6 {[%clk 0:00:20.3]} 61.
Kf2 {[%clk 0:00:25.6]} 61... Ra2+ {[%clk 0:00:21]} 62. Kg3 {[%clk 0:00:26.6]}
62... Ra3 {[%clk 0:00:22.4]} 63. Kf2 {[%clk 0:00:27.5]} 63... Kh6 {[%clk
0:00:23.9]} 64. Rd6 {[%clk 0:00:26.3]} 64... g5 {[%clk 0:00:25]} 65. f5 {[%clk
0:00:26.8]} 65... g4 {[%clk 0:00:26.3]} 66. Bxg4 {[%clk 0:00:19.8]} 66... Kg5
{[%clk 0:00:26.2]} 67. fxe6 {[%clk 0:00:21]} 67... fxe6 {[%clk 0:00:23]} 68. Rd4
{[%clk 0:00:18]} 68... Ra2+ {[%clk 0:00:17.2]} 69. Kg3 {[%clk 0:00:14.8]} 69...
Ra3+ {[%clk 0:00:18.3]} 70. Kf2 {[%clk 0:00:13.6]} 70... Ra2+ {[%clk 0:00:19.6]}
71. Kf3 {[%clk 0:00:14.4]} 71... Ra3+ {[%clk 0:00:20.7]} 72. Kg2 {[%clk
0:00:12.3]} 72... Ra2+ {[%clk 0:00:18.9]} 73. Kg3 {[%clk 0:00:10.8]} 73... Ra3+
{[%clk 0:00:19.9]} 74. Bf3 {[%clk 0:00:12.2]} 74... Kf5 {[%clk 0:00:20.9]} 75.
Re4 {[%clk 0:00:13.4]} 75... Ra5 {[%clk 0:00:21.7]} 76. Re2 {[%clk 0:00:14.6]}
76... Rxe5 {[%clk 0:00:22.2]} 77. Bg4+ {[%clk 0:00:16.3]} 77... Kf6 {[%clk
0:00:23.6]} 78. Rh2 {[%clk 0:00:17.9]} 78... Ra5 {[%clk 0:00:23.2]} 79. Rh6+
{[%clk 0:00:18.4]} 79... Kg7 {[%clk 0:00:21.9]} 80. Rxe6 {[%clk 0:00:19.5]}
80... Kf7 {[%clk 0:00:23.5]} 81. Rb6 {[%clk 0:00:20.2]} 81... Ra7 {[%clk
0:00:24.5]} 82. Kf4 {[%clk 0:00:21.3]} 82... Ke7 {[%clk 0:00:24.6]} 83. Bf3
{[%clk 0:00:21.7]} 83... Rc7 {[%clk 0:00:25.7]} 84. Ke5 {[%clk 0:00:22.7]} 84...
Rc5+ {[%clk 0:00:26.6]} 85. Bd5 {[%clk 0:00:23.9]} 85... Rc7 {[%clk 0:00:27.9]}
86. Re6+ {[%clk 0:00:25.2]} 86... Kd7 {[%clk 0:00:28.2]} 87. Rh6 {[%clk
0:00:26.9]} 87... Ke7 {[%clk 0:00:29.3]} 88. Rh1 {[%clk 0:00:26.4]} 88... Kd7
{[%clk 0:00:28.7]} 89. Be6+ {[%clk 0:00:27.2]} 89... Ke7 {[%clk 0:00:29.3]} 90.
Rh7+ {[%clk 0:00:25.3]} 90... Kd8 {[%clk 0:00:30]} 91. Rh8+ {[%clk 0:00:27]}
91... Ke7 {[%clk 0:00:31.3]} 92. Kd5 {[%clk 0:00:28.9]} 92... Kf6 {[%clk
0:00:28.1]} 93. Kd6 {[%clk 0:00:28.4]} 93... Rc1 {[%clk 0:00:28.2]} 94. Rf8+
{[%clk 0:00:29.5]} 94... Kg5 {[%clk 0:00:29.1]} 95. Bd5 {[%clk 0:00:30.9]} 95...
Rc3 {[%clk 0:00:27.3]} 96. Bf3 {[%clk 0:00:31.2]} 96... Re3 {[%clk 0:00:26.6]}
97. Kd5 {[%clk 0:00:31.3]} 97... Re7 {[%clk 0:00:26.5]} 98. Be4 {[%clk
0:00:31.1]} 98... Kg4 {[%clk 0:00:27.4]} 99. Bf5+ {[%clk 0:00:30.2]} 99... Kf4
{[%clk 0:00:24.3]} 100. Be6+ {[%clk 0:00:28.6]} 100... Ke3 {[%clk 0:00:24.5]}
101. Kd6 {[%clk 0:00:29.1]} 101... Ra7 {[%clk 0:00:24.6]} 102. Bd5 {[%clk
0:00:30.1]} 102... Kd4 {[%clk 0:00:23.6]} 103. Rf4+ {[%clk 0:00:30.4]} 103...
Ke3 {[%clk 0:00:25]} 104. Rh4 {[%clk 0:00:31.5]} 104... Rg7 {[%clk 0:00:18.8]}
105. Re4+ {[%clk 0:00:26.7]} 105... Kd3 {[%clk 0:00:19.3]} 106. Ra4 {[%clk
0:00:26.8]} 106... Rh7 {[%clk 0:00:18.3]} 107. Be4+ {[%clk 0:00:27.3]} 1-0